{"text_format":"1","workbook":"xlsx","n_sheets":2,"sheets":["Beräkningar","Förutsättningar"],"not_rendered":{"charts":0,"images":2,"macros":1,"external_links":0,"defined_names":13,"comments":0,"pivot_tables":0},"unopened":[],"bounds":{"document_bytes":16777216,"sheet_cells":100000,"rows_first":2000,"rows_last":500,"rows_between":2000,"halvings":0,"cell_chars":16384,"cell_head_chars":4096},"cells_cut":0,"cells_raw":0,"read":"whole","date_system":"1900"}

{"sheet":"Beräkningar","index":0,"n_rows":80,"n_cols":13,"rows_kept":80,"cut":false,"hidden":false,"merged":[[18,2,18,4],[18,8,18,10],[22,2,22,4],[22,8,22,10]]}
[null,null,null,null,null,null,null,null,null,null,"Version 1.0"]
[]
[null,null,null,null,null,null,null,null,null,"Organisationsnummer:"]
[]
[]
[]
["Beräkning av ekonomiska urvalskriterier"]
[]
[]
["Uppgifter om investeringen"]
[]
[null,null,"Värde","Kommentar och förklaring"]
["Total investering",null,null,"Samma som i budgetmallen där du angivit total investeringskostnad fördelad på olika kostnadsslag."]
["Ekonomisk livslängd",null,null,"Schablon för olika investeringstyper: djurstallar 20 år, torkanläggningar, växthus och täckdikningar 15 år."]
[]
[]
["Uppgifter från bokslut och kalkyl"]
[]
[null,null,"Före investering",null,null,null,"Investeringen",null,"Efter investering"]
[null,null,"Sökande företag","Medsökande företag","Totalt",null,null,null,"Sökande företag","Medsökande företag","Totalt",null,"Kommentar och förklaring"]
["Eget arbete",null,null,null,{"$f":"D21+C21","v":0},null,{"$f":"K21-E21","v":0},null,null,null,{"$f":"J21+I21","v":0},null,"För enskilda firmor anges här arbete som INTE avlönas via konto 6801-6899 och 7000-7699 eller R7. En heltid motsvarar 1720 timmar."]
[]
["Resultaträkningen",null,"Senaste bokslut",null,null,null,null,null,"Kalkylerat resultat"]
["Summa rörelseintäkter (Omsättning)",null,null,null,{"$f":"D24+C24","v":0},null,{"$f":"K24-E24","v":0},null,null,null,{"$f":"J24+I24","v":0},null,"I baskontoplanen är detta konto 3000-3999 och på deklarationsblankett för förenklat årsbokslut är det post R1 + R2 + R3."]
["Varor material och tjänster",null,null,null,{"$f":"D25+C25","v":0},null,0,null,null,null,{"$f":"J25+I25","v":0},null,"I baskontoplanen är detta konto 4000-4999 och på deklarationsblankett för förenklat årsbokslut är det post R5."]
["Övriga externa kostnader",null,null,null,{"$f":"D26+C26","v":0},null,0,null,null,null,0,null,"I baskontoplanen är detta konto 5000-6799 och på deklarationsblankett för förenklat årsbokslut är det post R6."]
["Företagets förädlingsvärde",null,{"$f":"SUM(C24:C26)","v":0},{"$f":"SUM(D24:D26)","v":0},{"$f":"SUM(E24:E26)","v":0},null,0,null,{"$f":"SUM(I24:I26)","v":0},0,{"$f":"SUM(K24:K26)","v":0},null,"Värdet beräknas automatiskt"]
["Personalkostnader",null,null,null,0,null,0,null,null,null,0,null,"I baskontoplanen är detta konto 6801-6899 samt 7000-7699 och på deklarationsblankett för förenklat årsbokslut är det post R7."]
["Av- och nedskrivningar av anläggningstillgångar",null,null,null,0,null,0,null,null,null,0,null,"I baskontoplanen är detta konto 7700-7840 och på deklarationsblankett för förenklat årsbokslut är det post R9 + R10."]
["Resultat före finansiellt netto",null,{"$f":"SUM(C27:C29)","v":0},0,{"$f":"SUM(E27:E29)","v":0},null,0,null,{"$f":"SUM(I27:I29)","v":0},0,{"$f":"SUM(K27:K29)","v":0},null,"Värdet beräknas automatiskt"]
["Summa finansiella poster",null,null,null,0,null,0,null,null,null,0,null,"I baskontoplanen är detta konto 8000-8499 och på deklarationsblankett för förenklat årsbokslut är det post R4 - R3."]
["Årets resultat",null,{"$f":"SUM(C30:C31)","v":0},0,{"$f":"SUM(E30:E31)","v":0},null,0,null,{"$f":"SUM(I30:I31)","v":0},0,{"$f":"SUM(K30:K31)","v":0},null,"Värdet beräknas automatiskt"]
[]
["Kostnad för eget arbete",null,{"$f":"-C21*C39","v":0},{"$f":"-D21*C39","v":0},{"$f":"C34+D34","v":0},null,0,null,{"$f":"-I21*C39","v":0},{"$f":"-J21*C39","v":0},{"$f":"I34+J34","v":0}]
["Årets resultat efter eget arbete",null,{"$f":"C32+C34","v":0},{"$f":"D32+D34","v":0},0,null,0,null,{"$f":"I32+I34","v":0},{"$f":"J32+J34","v":0},{"$f":"K32+K34","v":0}]
[]
["Konstanter, ändras av myndighet"]
[]
["Kostnad eget arbete",null,240]
["Kostnad anställd personal inkl sociala avgifter mm",null,280]
["Kalkylränta",null,0.04]
["Beräkning av urvalskriterium"]
[null,null,null,null,null,null,null,null,null,null,{"$f":"IF(K3<>\"\",K3,\"\")","v":""}]
["UK 1 Företagets ökade förädlingsvärde i förhållande till investeringens storlek"]
["Förädlingsvärde före investering ",null,null,null,null,null,{"$f":"E27","v":0}]
["Förädlingsvärde efter investering",null,null,null,null,null,{"$f":"K27","v":0}]
["Ökning av förädlingsvärde",null,null,null,null,null,{"$f":"G46-G45","v":0}]
["Total investering (i tusental kronor) ",null,null,null,null,null,{"$f":"C13","v":0}]
["Förädlingsvärdeskvot",null,null,null,null,null,{"$f":"G47/G48*1000","v":{"$error":"#DIV/0!"}},"Skrivs in på UK1"]
[]
["UK 2 Företagets vinstmarginal, efter investering"]
["Resultat före finansiellt netto, efter investering",null,null,null,null,null,{"$f":"K30","v":0}]
["Justering för eventuellt eget arbete som inte ingår i resultaträkningen (enskilda firmor)",null,null,null,null,null,{"$f":"K34","v":0}]
["Resultat före finansiellt netto inklusve eget arbete, efter investering",null,null,null,null,null,{"$f":"G52+G53","v":0}]
["Omsättning, efter investering",null,null,null,null,null,{"$f":"K24","v":0}]
["Vinstmarginal efter investering",null,null,null,null,null,{"$f":"G54/G55","v":{"$error":"#DIV/0!"}},"Skrivs in på UK2"]
[]
["UK 3 Investeringens nettonuvärde"]
["Företagets förändrade omsättning",null,null,null,null,null,{"$f":"K24-E24","v":0}]
["Företagets förändrade kostnader (exkl avskrivningar och finansiellt netto)",null,null,null,null,null,{"$f":"K25+K26+K28-E25-E26-E28","v":0}]
["Företagets förändrade kostnad för eget arbete (enskilda firmor)",null,null,null,null,null,{"$f":"-(E34-K34)","v":0}]
["Investeringens netto",null,null,null,null,null,{"$f":"SUM(G59:G61)","v":0}]
["Investeringens nuvärde (beräknad med kalkylräntan)",null,null,null,null,null,{"$f":"-PV(C41,C14,G62)","v":0}]
["Total investering",null,null,null,null,null,{"$f":"C13","v":0}]
["Nettonuvärde",null,null,null,null,null,{"$f":"G63-G64","v":0},"Skrivs in på UK3"]
[]
["UK 4 Företagets självfinansieringsgrad, före investering"]
["Förädlingsvärde, före investering",null,null,null,null,null,{"$f":"E27","v":0}]
["Personalkostnader, före investering",null,null,null,null,null,{"$f":"E28","v":0}]
["Justering för eventuellt eget arbete som inte ingår i resultaträkningen (enskilda firmor)",null,null,null,null,null,{"$f":"E34","v":0}]
["Finansiella poster, före investering",null,null,null,null,null,{"$f":"E31","v":0}]
["Företagets självfinansiering i kronor",null,null,null,null,null,{"$f":"SUM(G68:G71)","v":0}]
["Investering",null,null,null,null,null,{"$f":"C13","v":0}]
["Självfinansieringsgrad",null,null,null,null,null,{"$f":"G72/G73","v":{"$error":"#DIV/0!"}},"Skrivs in på UK4"]
[]
["UK 5 Ökad sysselsättning"]
["Företagets ökade kostnad för personal",null,null,null,null,null,{"$f":"G28","v":0}]
["Ökning av timmar, anställd personal",null,null,null,null,null,{"$f":"G77/C40","v":0}]
["Ökning av timmar, eget arbete",null,null,null,null,null,{"$f":"G21","v":0}]
["Värde",null,null,null,null,null,{"$f":"G79+G78","v":0},"Skrivs in på UK5"]

{"sheet":"Förutsättningar","index":1,"n_rows":67,"n_cols":16,"rows_kept":67,"cut":false,"hidden":false,"merged":[[16,6,16,7],[16,3,16,4],[12,4,12,9],[61,3,61,4],[60,3,60,4],[60,6,60,7],[61,6,61,7],[66,3,66,4],[63,6,63,7],[64,6,64,7],[65,6,65,7],[66,6,66,7],[62,3,62,4],[63,3,63,4],[64,3,64,4],[65,3,65,4],[62,6,62,7]]}
[null,null,null,null,null,null,null,null,null,{"$f":"Beräkningar!K1","v":"Version 1.0"}]
[]
[]
[null,null,null,null,null,null,null,"Organisationsnummer:",null,{"$f":"IF(Beräkningar!I3>0,Beräkningar!I3,\"\")","v":""}]
[]
[]
["Förutsättningar"]
[]
[]
["Uppgifter om investeringen"]
[]
[null,null,null,null,"Motiv/förklaring"]
["Ekonomisk livslängd:",null,null,{"$f":"Beräkningar!C14","v":0}]
[]
["Uppgifter från bokslut och kalkyl"]
[]
[null,null,null,"Före investering",null,null,"Efter investering",null,null,null,null,null,null,null,"Beräkningar"]
[null,"Enhet",null,"Mängd","Pris/st",null,"Mängd","Pris/st",null,"Motiv/förklaring"]
["Förändrade rörelseintäkter (rad 21)"]
["Intäkt 1",null,null,null,null,null,null,null,null,null,null,null,null,null,{"$f":"D20*E20","v":0},{"$f":"G20*H20","v":0}]
["Intäkt 2",null,null,null,null,null,null,null,null,null,null,null,null,null,{"$f":"D21*E21","v":0},{"$f":"G21*H21","v":0}]
["Intäkt 3",null,null,null,null,null,null,null,null,null,null,null,null,null,{"$f":"D22*E22","v":0},{"$f":"G22*H22","v":0}]
["Intäkt 4",null,null,null,null,null,null,null,null,null,null,null,null,null,{"$f":"D23*E23","v":0},{"$f":"G23*H23","v":0}]
["Intäkt 5",null,null,null,null,null,null,null,null,null,null,null,null,null,{"$f":"D24*E24","v":0},{"$f":"G24*H24","v":0}]
[null,null,null,null,null,null,null,null,null,null,null,null,null,null,{"$f":"SUM(O20:O24)","v":0},{"$f":"SUM(P20:P24)","v":0}]
["Förändrade kostnader för varor och material (rad 22)"]
["Kostnad 1",null,null,null,null,null,null,null,null,null,null,null,null,null,{"$f":"D27*E27","v":0},{"$f":"G27*H27","v":0}]
["Kostnad 2",null,null,null,null,null,null,null,null,null,null,null,null,null,{"$f":"D28*E28","v":0},{"$f":"G28*H28","v":0}]
["Kostnad 3",null,null,null,null,null,null,null,null,null,null,null,null,null,{"$f":"D29*E29","v":0},{"$f":"G29*H29","v":0}]
["Kostnad 4",null,null,null,null,null,null,null,null,null,null,null,null,null,{"$f":"D30*E30","v":0},{"$f":"G30*H30","v":0}]
["Kostnad 5",null,null,null,null,null,null,null,null,null,null,null,null,null,{"$f":"D31*E31","v":0},{"$f":"G31*H31","v":0}]
[null,null,null,null,null,null,null,null,null,null,null,null,null,null,{"$f":"SUM(O27:O31)","v":0},{"$f":"SUM(P27:P31)","v":0}]
["Förändrade övriga externa kostnader (rad 23)"]
["Kostnad 1",null,null,null,null,null,null,null,null,null,null,null,null,null,{"$f":"D34*E34","v":0},{"$f":"G34*H34","v":0}]
["Kostnad 2",null,null,null,null,null,null,null,null,null,null,null,null,null,{"$f":"D35*E35","v":0},{"$f":"G35*H35","v":0}]
["Kostnad 3",null,null,null,null,null,null,null,null,null,null,null,null,null,{"$f":"D36*E36","v":0},{"$f":"G36*H36","v":0}]
["Kostnad 4",null,null,null,null,null,null,null,null,null,null,null,null,null,{"$f":"D37*E37","v":0},{"$f":"G37*H37","v":0}]
["Kostnad 5",null,null,null,null,null,null,null,null,null,null,null,null,null,{"$f":"D38*E38","v":0},{"$f":"G38*H38","v":0}]
[null,null,null,null,null,null,null,null,null,null,null,null,null,null,{"$f":"SUM(O34:O38)","v":0},{"$f":"SUM(P34:P38)","v":0}]
["Förändrade personalkostnader (rad 25)"]
["Kostnad 1",null,null,null,null,null,null,null,null,null,null,null,null,null,{"$f":"D41*E41","v":0},{"$f":"G41*H41","v":0}]
["Kostnad 2",null,null,null,null,null,null,null,null,null,null,null,null,null,{"$f":"D42*E42","v":0},{"$f":"G42*H42","v":0}]
["Kostnad 3",null,null,null,null,null,null,null,null,null,null,null,null,null,{"$f":"D43*E43","v":0},{"$f":"G43*H43","v":0}]
["Kostnad 4",null,null,null,null,null,null,null,null,null,null,null,null,null,{"$f":"D44*E44","v":0},{"$f":"G44*H44","v":0}]
["Kostnad 5",null,null,null,null,null,null,null,null,null,null,null,null,null,{"$f":"D45*E45","v":0},{"$f":"G45*H45","v":0}]
[null,null,null,null,null,null,null,null,null,null,null,null,null,null,{"$f":"SUM(O41:O45)","v":0},{"$f":"SUM(P41:P45)","v":0}]
["Förändrade av- och nedskrivningar (rad 26)"]
["Kostnad 1",null,null,null,null,null,null,null,null,null,null,null,null,null,{"$f":"D48*E48","v":0},{"$f":"G48*H48","v":0}]
["Kostnad 2",null,null,null,null,null,null,null,null,null,null,null,null,null,{"$f":"D49*E49","v":0},{"$f":"G49*H49","v":0}]
["Kostnad 3",null,null,null,null,null,null,null,null,null,null,null,null,null,{"$f":"D50*E50","v":0},{"$f":"G50*H50","v":0}]
["Kostnad 4",null,null,null,null,null,null,null,null,null,null,null,null,null,{"$f":"D51*E51","v":0},{"$f":"G51*H51","v":0}]
["Kostnad 5",null,null,null,null,null,null,null,null,null,null,null,null,null,{"$f":"D52*E52","v":0},{"$f":"G52*H52","v":0}]
[]
["Förändrat finansiellt netto (rad 28)"]
["Kostnad 1",null,null,null,null,null,null,null,null,null,null,null,null,null,{"$f":"D55*E55","v":0},{"$f":"G55*H55","v":0}]
["Kostnad 2",null,null,null,null,null,null,null,null,null,null,null,null,null,{"$f":"D56*E56","v":0},{"$f":"G56*H56","v":0}]
["Kostnad 3",null,null,null,null,null,null,null,null,null,null,null,null,null,{"$f":"D57*E57","v":0},{"$f":"G57*H57","v":0}]
["Kostnad 4",null,null,null,null,null,null,null,null,null,null,null,null,null,{"$f":"D58*E58","v":0},{"$f":"G58*H58","v":0}]
["Kostnad 5",null,null,null,null,null,null,null,null,null,null,null,null,null,{"$f":"D59*E59","v":0},{"$f":"G59*H59","v":0}]
[null,null,null,null,null,null,null,null,null,null,null,null,null,null,{"$f":"SUM(O55:O59)","v":0},{"$f":"SUM(P55:P59)","v":0}]
["Kontroller, förändring av:",null,null,"Enl nyckeltal",null,null,"Enl förutsättningar",null,null,"Differens"]
["Rörelseintäkter",null,null,{"$f":"Beräkningar!K24-Beräkningar!E24","v":0},null,null,{"$f":"P25-O25","v":0},null,null,{"$f":"IF(O62>0.95,IF(O62<1.05,\"Differens mindre än 5%, OK\",\"Differens större än 5%, ändringen ej förklarad!\"),\"Differens större än 5%, ändringen ej förklarad!\")","v":{"$error":"#DIV/0!"}},null,null,null,null,{"$f":"ABS(G62/D62)","v":{"$error":"#DIV/0!"}}]
["Kostnader för varor och material",null,null,{"$f":"-Beräkningar!K25+Beräkningar!E25","v":0},null,null,{"$f":"P32-O32","v":0},null,null,{"$f":"IF(O63>0.95,IF(O63<1.05,\"Differens mindre än 5%, OK\",\"Differens större än 5%, ändringen ej förklarad!\"),\"Differens större än 5%, ändringen ej förklarad!\")","v":{"$error":"#DIV/0!"}},null,null,null,null,{"$error":"#DIV/0!"}]
["Övriga externa kostnader",null,null,{"$f":"-Beräkningar!K26+Beräkningar!E26","v":0},null,null,{"$f":"P39-O39","v":0},null,null,{"$error":"#DIV/0!"},null,null,null,null,{"$error":"#DIV/0!"}]
["Personalkostnader",null,null,{"$f":"-Beräkningar!K28+Beräkningar!E28","v":0},null,null,{"$f":"P46-O46","v":0},null,null,{"$error":"#DIV/0!"},null,null,null,null,{"$error":"#DIV/0!"}]
["Av- och nedskrivningar",null,null,{"$f":"-Beräkningar!K29+Beräkningar!E29","v":0},null,null,{"$f":"P52-O52","v":0},null,null,{"$error":"#DIV/0!"},null,null,null,null,{"$error":"#DIV/0!"}]
["Finansiellt netto",null,null,{"$f":"-Beräkningar!K31+Beräkningar!E31","v":0},null,null,{"$f":"P60-O60","v":0},null,null,{"$error":"#DIV/0!"},null,null,null,null,{"$error":"#DIV/0!"}]